fUSD/lending_fUSD_20250302
["ID","MTS","AMOUNT","RATE_DAILY","PERIOD"]
[355062366,1740886245300,-503.98659735,0.00025477,2]
[355062368,1740886245310,-500.0,0.00025477,2]
[355062370,1740886245319,-508.75559373,0.00025477,2]
[355062372,1740886245329,-500.0,0.00025477,2]
[355062374,1740886245339,-151.0,0.00025477,7]
[355062376,1740886245348,-500.0,0.00025477,2]
[355062378,1740886245357,-501.3178823,0.00025477,2]
[355062380,1740886245367,-507.23326975,0.00025477,2]
[355062382,1740886245376,-505.31006432,0.00025477,2]
[355062384,1740886245386,-504.18266547,0.00025477,2]
[355062386,1740886245395,-500.0,0.00025477,2]
[355062388,1740886245406,-500.0,0.00025477,2]
[355062390,1740886245415,-500.0,0.00025477,2]
[355062392,1740886245425,-506.43299853,0.00025477,2]
[355062394,1740886245434,-2538.23858753,0.00025477,2]
[355062396,1740886245444,-500.0,0.00025477,2]
[355062398,1740886245454,-500.0,0.00025477,2]
[355062400,1740886245463,-506.45583543,0.00025477,2]
[355062402,1740886245473,-500.0,0.00025477,2]
[355062404,1740886245482,-500.0,0.00025477,2]
[355062406,1740886245492,-500.0,0.00025477,2]
[355062408,1740886245501,-500.0,0.00025477,2]
[355062410,1740886245511,-500.0,0.00025477,2]
[355062412,1740886245520,-504.74675675,0.00025477,2]
[355062414,1740886245530,-500.0,0.00025477,2]
[355062416,1740886245539,-500.0,0.00025477,2]
[355062418,1740886245549,-500.0,0.00025477,2]
[355062420,1740886245558,-151.0,0.00025477,7]
[355062422,1740886245569,-500.0,0.00025477,2]
[355062423,1740886245579,-500.0,0.00025477,2]
[355062425,1740886245588,-500.0,0.00025477,2]
[355062427,1740886245598,-500.0,0.00025477,2]
[355062429,1740886245607,-505.22677578,0.00025477,2]
[355062430,1740886245617,-506.54986931,0.00025477,2]
[355062431,1740886245626,-500.0,0.00025477,2]
[355062432,1740886245635,-500.0,0.00025477,2]
[355062433,1740886245644,-501.50990927,0.00025477,2]
[355062434,1740886245654,-507.42353905,0.00025477,2]
[355062435,1740886245663,-506.73957918,0.00025477,2]
[355062436,1740886245673,-500.0,0.00025477,2]
[355062437,1740886245683,-507.12119274,0.00025477,2]
[355062439,1740886245692,-500.0,0.00025477,2]
[355062441,1740886245701,-361.49963266,0.00025477,2]
[355062443,1740886245711,-500.0,0.00025477,2]
[355062445,1740886245721,-508.97699295,0.00025477,2]
[355062447,1740886245730,-500.0,0.00025477,2]
[355062449,1740886245740,-500.0,0.00025477,2]
[355062451,1740886245750,-500.0,0.00025477,2]
[355062453,1740886245759,-500.0,0.00025477,2]
[355062455,1740886245769,-500.0,0.00025477,2]
[355062457,1740886245778,-500.0,0.00025477,2]
[355062459,1740886245788,-511.49448544,0.00025477,2]
[355062461,1740886245797,-500.0,0.00025477,2]
[355062463,1740886245807,-501.36381046,0.00025477,2]
[355062465,1740886245816,-500.0,0.00025477,2]
[355062467,1740886245827,-500.0,0.00025477,2]
[355062469,1740886245838,-491.20708808,0.00025477,2]
[355062471,1740886245848,-500.0,0.00025477,2]
[355062473,1740886245858,-622.91,0.00025477,2]
[355062475,1740886245867,-512.31,0.00025477,2]
[355062477,1740886245876,-500.0,0.00025477,2]
[355062479,1740886245885,-507.15868956,0.00025477,2]
[355062481,1740886245894,-503.00399467,0.00025477,2]
[355062483,1740886245903,-500.0,0.00025477,2]
[355062485,1740886245913,-500.0,0.00025477,2]
[355062487,1740886245923,-500.0,0.00025477,2]
[355062489,1740886245932,-500.0,0.00025477,2]
[355062491,1740886245941,-500.0,0.00025477,2]
[355062493,1740886245951,-503.19127212,0.00025477,2]
[355062495,1740886245960,-503.60130043,0.00025477,2]
[355062497,1740886245969,-500.0,0.00025477,2]
[355062500,1740886245979,-500.0,0.00025477,2]
[355062502,1740886245988,-500.0,0.00025477,2]
[355062504,1740886245998,-505.31060485,0.00025477,2]
[355062506,1740886246008,-504.2399288,0.00025477,2]
[355062508,1740886246018,-500.0,0.00025477,2]
[355062509,1740886246027,-500.0,0.00025477,2]
[355062512,1740886246037,-500.0,0.00025477,2]
[355062514,1740886246047,-506.85866659,0.00025477,2]
[355062516,1740886246059,-1302.52,0.00025477,2]
[355062518,1740886246068,-500.0,0.00025477,2]
[355062520,1740886246077,-500.0,0.00025477,2]
[355062522,1740886246087,-500.0,0.00025477,2]
[355062524,1740886246096,-500.0,0.00025477,2]
[355062526,1740886246107,-500.0,0.00025477,2]
[355062528,1740886246116,-500.0,0.00025477,2]
[355062530,1740886246125,-500.0,0.00025477,2]
[355062532,1740886246135,-500.0,0.00025477,2]
[355062534,1740886246145,-508.68334862,0.00025477,2]
[355062536,1740886246155,-1313.5,0.00025477,2]
[355062538,1740886246164,-500.0,0.00025477,2]
[355062540,1740886246176,-500.0,0.00025477,2]
[355062542,1740886246186,-500.0,0.00025477,2]
[355062546,1740886246196,-1610.22,0.00025477,2]
[355062550,1740886246206,-500.0,0.00025477,2]
[355062553,1740886246215,-500.0,0.00025477,2]
[355062556,1740886246226,-151.0,0.00025477,7]
[355062558,1740886246237,-500.0,0.00025477,2]
[355062560,1740886246246,-504.71181406,0.00025477,2]
[355062562,1740886246256,-500.0,0.00025477,2]
[355062564,1740886246267,-491.91358046,0.00025477,2]
[355062566,1740886246276,-500.0,0.00025477,2]
[355062568,1740886246286,-500.0,0.00025477,2]
[355062570,1740886246295,-500.0,0.00025477,2]
[355062572,1740886246310,-151.0,0.00025477,7]
[355062574,1740886246320,-500.0,0.00025477,2]
[355062576,1740886246330,-500.0,0.00025477,2]
[355062578,1740886246339,-500.0,0.00025477,2]
[355062580,1740886246349,-164.806809,0.00025477,7]
[355062582,1740886246359,-504.55262719,0.00025477,2]
[355062584,1740886246368,-501.52000962,0.00025477,2]
[355062586,1740886246377,-151.0,0.00025477,7]
[355062588,1740886246387,-500.0,0.00025477,2]
[355062590,1740886246397,-500.0,0.00025477,2]
[355062592,1740886246406,-500.0,0.00025477,2]
[355062594,1740886246416,-496.70408745,0.00025477,2]
[355062596,1740886246425,-500.0,0.00025477,2]
[355062598,1740886246435,-500.0,0.00025477,2]
[355062600,1740886246444,-500.0,0.00025477,2]
[355062602,1740886246454,-509.03074179,0.00025477,2]
[355062605,1740886246464,-500.0,0.00025477,2]
[355062606,1740886246474,-507.97012236,0.00025477,2]
[355062609,1740886246483,-502.69,0.00025477,2]
[355062611,1740886246493,-503.52936452,0.00025477,2]
[355062613,1740886246502,-500.0,0.00025477,2]
[355062615,1740886246512,-500.0,0.00025477,2]
[355062617,1740886246521,-500.0,0.00025477,2]
[355062619,1740886246533,-502.26751895,0.00025477,2]
[355062621,1740886246542,-500.0,0.00025477,2]
[355062623,1740886246552,-500.0,0.00025477,2]
[355062625,1740886246562,-502.93457827,0.00025477,2]
[355062627,1740886246571,-500.0,0.00025477,2]
[355062629,1740886246581,-500.0,0.00025477,2]
[355062631,1740886246590,-504.08981176,0.00025477,2]
[355062633,1740886246600,-500.0,0.00025477,2]
[355062635,1740886246609,-502.34874138,0.00025477,2]
[355062637,1740886246619,-500.0,0.00025477,2]
[355062639,1740886246628,-503.8816584,0.00025477,2]
[355062641,1740886246637,-500.0,0.00025477,2]
[355062643,1740886246646,-500.0,0.00025477,2]
[355062645,1740886246656,-500.0,0.00025477,2]
[355062647,1740886246665,-500.0,0.00025477,2]
[355062649,1740886246675,-500.0,0.00025477,2]
[355062651,1740886246685,-536.76,0.00025477,2]
[355062653,1740886246695,-622.37761535,0.00025477,2]
[355062655,1740886246704,-500.0,0.00025477,2]
[355062657,1740886246713,-500.0,0.00025477,2]
[355062659,1740886246723,-500.0,0.00025477,2]
[355062661,1740886246732,-500.0,0.00025477,2]
[355062682,1740886246909,-504.67652525,0.00025477,2]
[355062684,1740886246921,-151.0,0.00025477,7]
[355062686,1740886246932,-505.12846123,0.00025477,2]
[355062688,1740886246942,-500.0,0.00025477,2]
[355062690,1740886246952,-500.0,0.00025477,2]
[355062692,1740886246961,-500.0,0.00025477,2]
[355062694,1740886246971,-503.10022823,0.00025477,2]
[355062696,1740886246981,-506.16776717,0.00025477,2]
[355062699,1740886246997,-500.0,0.00025477,2]
[355062701,1740886247007,-497.42170741,0.00025477,2]
[355062703,1740886247016,-517.97,0.00025477,2]
[355062705,1740886247026,-501.63907553,0.00025477,2]
[355062707,1740886247035,-501.76672398,0.00025477,2]
[355062709,1740886247045,-151.0,0.00025477,7]
[355062711,1740886247055,-500.0,0.00025477,2]
[355062713,1740886247064,-207.486988,0.00025477,7]
[355062715,1740886247074,-500.0,0.00025477,2]
[355062717,1740886247084,-500.0,0.00025477,2]
[355062719,1740886247094,-500.0,0.00025477,2]
[355062721,1740886247104,-500.0,0.00025477,2]
[355062723,1740886247113,-500.0,0.00025477,2]
[355062725,1740886247124,-500.0,0.00025477,2]
[355062727,1740886247134,-500.0,0.00025477,2]
[355062729,1740886247143,-151.0,0.00025477,7]
[355062731,1740886247152,-151.0,0.00025477,7]
[355062733,1740886247162,-500.0,0.00025477,2]
[355062735,1740886247171,-504.96783667,0.00025477,2]
[355062737,1740886247181,-500.0,0.00025477,2]
[355062739,1740886247191,-500.0,0.00025477,2]
[355062741,1740886247200,-500.0,0.00025477,2]
[355062742,1740886247210,-151.0,0.00025477,7]
[355062744,1740886247220,-298.020615,0.00025477,7]
[355062746,1740886247232,-151.0,0.00025477,7]
[355062748,1740886247241,-500.0,0.00025477,2]
[355062751,1740886247256,-500.0,0.00025477,2]
[355062753,1740886247265,-501.31095665,0.00025477,2]
[355062755,1740886247277,-504.07569931,0.00025477,2]
[355062757,1740886247287,-151.0,0.00025477,7]
[355062759,1740886247296,-500.0,0.00025477,2]
[355062761,1740886247309,-500.0,0.00025477,2]
[355062763,1740886247319,-514.25562924,0.00025477,2]
[355062765,1740886247329,-500.0,0.00025477,2]
[355062767,1740886247338,-500.0,0.00025477,2]
[355062769,1740886247348,-504.61848074,0.00025477,2]
[355062771,1740886247358,-500.0,0.00025477,2]
[355062773,1740886247368,-500.0,0.00025477,2]
[355062775,1740886247378,-507.10578641,0.00025477,2]
[355062777,1740886247388,-500.0,0.00025477,2]
[355062779,1740886247398,-500.0,0.00025477,2]
[355062781,1740886247408,-348.23841366,0.00025477,2]
[355062783,1740886247418,-500.0,0.00025477,2]
[355062785,1740886247428,-500.0,0.00025477,2]
[355062786,1740886247439,-500.0,0.00025477,2]
[355062788,1740886247449,-500.0,0.00025477,2]
[355062791,1740886247459,-500.0,0.00025477,2]
[355062793,1740886247469,-502.77426222,0.00025477,2]
[355062795,1740886247479,-500.0,0.00025477,2]
[355062797,1740886247490,-500.0,0.00025477,2]
[355062799,1740886247500,-500.0,0.00025477,2]
[355062800,1740886247510,-503.42989298,0.00025477,2]
[355062802,1740886247520,-500.0,0.00025477,90]
[355062804,1740886247530,-500.0,0.00025477,2]
[355062806,1740886247540,-500.0,0.00025477,2]
[355062809,1740886247551,-500.0,0.00025477,2]
[355062810,1740886247561,-504.82285378,0.00025477,2]
[355062812,1740886247571,-503.47390207,0.00025477,2]
[355062814,1740886247581,-501.71526208,0.00025477,2]
[355062816,1740886247592,-2080.77,0.00025477,2]
[355062818,1740886247602,-500.0,0.00025477,2]
[355062820,1740886247612,-500.0,0.00025477,2]
[355062822,1740886247622,-500.0,0.00025477,2]
[355062824,1740886247631,-500.0,0.00025477,2]
[355062826,1740886247641,-335.29607584,0.00025477,2]
[355062828,1740886247651,-500.0,0.00025477,2]
[355062830,1740886247661,-530.68,0.00025477,2]
[355062832,1740886247670,-500.0,0.00025477,2]
[355062834,1740886247682,-500.0,0.00025477,2]
[355062836,1740886247692,-501.45009573,0.00025477,2]
[355062838,1740886247701,-500.0,0.00025477,2]
[355062840,1740886247711,-500.0,0.00025477,2]
[355062842,1740886247720,-1512.09,0.00025477,2]
[355062844,1740886247730,-500.0,0.00025477,2]
[355062846,1740886247739,-500.0,0.00025477,2]
[355062848,1740886247749,-500.0,0.00025477,2]
[355062851,1740886247763,-500.0,0.00025477,2]
[355062853,1740886247772,-2251.6,0.00025477,2]
[355062854,1740886247782,-500.0,0.00025477,2]
[355062856,1740886247792,-500.0,0.00025477,2]
[355062858,1740886247801,-503.16268123,0.00025477,2]
[355062860,1740886247811,-505.83305192,0.00025477,2]
[355062862,1740886247821,-176.181468,0.00025477,7]
[355062864,1740886247832,-504.78737937,0.00025477,2]
[355062867,1740886247842,-500.0,0.00025477,2]
[355062869,1740886247851,-756.86,0.00025477,2]
[355062871,1740886247861,-500.0,0.00025477,2]
[355062873,1740886247871,-500.0,0.00025477,2]
[355062875,1740886247881,-500.0,0.00025477,2]
[355062877,1740886247891,-500.0,0.00025477,2]
[355062878,1740886247900,-503.65557805,0.00025477,2]
[355062880,1740886247910,-500.0,0.00025477,2]
[355062882,1740886247920,-1576.87,0.00025477,2]
[355062884,1740886247930,-702.12,0.00025477,2]
[355062886,1740886247940,-500.0,0.00025477,2]
[355062888,1740886247950,-1032.14,0.00025477,2]
[355062891,1740886247960,-500.0,0.00025477,2]
[355062893,1740886247970,-500.0,0.00025477,2]
[355062895,1740886247979,-500.0,0.00025477,2]
[355062896,1740886247989,-563.08,0.00025477,2]
[355062898,1740886247999,-500.0,0.00025477,2]
[355062900,1740886248009,-500.0,0.00025477,2]
[355062902,1740886248019,-500.0,0.00025477,2]
[355062904,1740886248028,-507.11475856,0.00025477,2]
[355062906,1740886248038,-500.0,0.00025477,2]
[355062908,1740886248048,-500.0,0.00025477,2]
[355062910,1740886248058,-1051.96,0.00025477,2]
[355062912,1740886248068,-504.46119073,0.00025477,2]
[355062914,1740886248078,-500.0,0.00025477,2]
[355062916,1740886248087,-500.0,0.00025477,2]
[355062918,1740886248098,-500.0,0.00025477,2]
[355062920,1740886248108,-500.0,0.00025477,2]
[355062922,1740886248117,-500.0,0.00025477,2]
[355062924,1740886248127,-500.0,0.00025477,2]
[355062926,1740886248138,-1280.59,0.00025477,2]
[355062928,1740886248148,-507.66414164,0.00025477,2]
[355062930,1740886248158,-500.0,0.00025477,2]
[355062932,1740886248168,-500.00113168,0.00025477,2]
[355062934,1740886248178,-500.0,0.00025477,2]
[355062936,1740886248188,-500.0,0.00025477,2]
[355062938,1740886248199,-613.87,0.00025477,2]
[355062940,1740886248209,-500.0,0.00025477,2]
[355062942,1740886248220,-511.85951743,0.00025477,2]
[355062944,1740886248233,-446.46687034,0.00025477,2]
[355062946,1740886248244,-1032.28,0.00025477,2]
[355062948,1740886248253,-635.91204836,0.00025477,2]
[355062950,1740886248263,-502.98563376,0.00025477,2]
[355062953,1740886248279,-883.02,0.00025477,2]
[355062955,1740886248289,-744.55,0.00025477,2]
[355062956,1740886248299,-1104.35,0.00025477,2]
[355062958,1740886248312,-507.02544782,0.00025477,2]
[355062960,1740886248322,-501.86437434,0.00025477,2]
[355062962,1740886248332,-508.86,0.00025477,2]
[355062964,1740886248342,-500.0,0.00025477,2]
[355062966,1740886248352,-500.0,0.00025477,2]
[355062968,1740886248362,-500.0,0.00025477,2]
[355062970,1740886248372,-558.960244,0.00025477,7]
[355062972,1740886248382,-1457.92,0.00025477,2]
[355062974,1740886248392,-558.960244,0.00025477,7]
[355062976,1740886248402,-504.49071427,0.00025477,2]
[355062978,1740886248412,-500.0,0.00025477,2]
[355062980,1740886248422,-507.39973656,0.00025477,2]
[355062982,1740886248432,-811.98,0.00025477,2]
[355062984,1740886248442,-501.05487313,0.00025477,2]
[355062986,1740886248452,-151.0,0.00025477,7]
[355062988,1740886248462,-500.0,0.00025477,2]
[355062990,1740886248472,-501.50029797,0.00025477,2]
[355062992,1740886248482,-500.0,0.00025477,2]
[355062994,1740886248492,-506.418782,0.00025477,2]
[355062996,1740886248502,-567.27234346,0.00025477,2]
[355062998,1740886248512,-505.76040861,0.00025477,2]
[355063000,1740886248522,-1709.58,0.00025477,2]
[355063002,1740886248532,-507.92758218,0.00025477,2]
[355063004,1740886248542,-530.51740972,0.00025477,2]
[355063006,1740886248552,-500.0,0.00025477,7]
[355063008,1740886248562,-1625.42,0.00025477,2]
[355063010,1740886248572,-506.93165709,0.00025477,2]
[355063012,1740886248582,-505.60346787,0.00025477,2]
[355063025,1740886248706,-500.0,0.00025477,2]
[355063027,1740886248717,-1889.57,0.00025477,2]
[355063029,1740886248727,-500.0,0.00025477,2]
[355063031,1740886248737,-500.0,0.00025477,2]
[355063033,1740886248748,-615.7827745,0.00025477,2]
[355063035,1740886248757,-500.0,0.00025477,2]
[355063037,1740886248767,-500.0,0.00025477,2]
[355063039,1740886248777,-500.0,0.00025477,2]
[355063041,1740886248786,-1547.38,0.00025477,2]
[355063043,1740886248796,-500.0,0.00025477,2]
[355063045,1740886248806,-511.0804388,0.00025477,2]
[355063047,1740886248816,-580.53952107,0.00025477,2]
[355063049,1740886248826,-512.1210247,0.00025477,2]
[355063051,1740886248836,-1000.0,0.00025477,2]
[355063053,1740886248846,-195.05634639,0.00025477,2]
[355063055,1740886248856,-1485.16,0.00025477,2]
[355063056,1740886248865,-507.35279298,0.00025477,2]
[355063058,1740886248875,-502.70734444,0.00025477,2]
[355063060,1740886248884,-945.2,0.00025477,2]
[355063062,1740886248894,-503.9957699,0.00025477,2]
[355063064,1740886248903,-1404.56,0.00025477,2]
[355063067,1740886248923,-500.0,0.00025477,2]
[355063070,1740886248936,-510.10950293,0.00025477,2]
[355063072,1740886248947,-510.06089819,0.00025477,2]
[355063074,1740886248958,-590.40500266,0.00025477,2]
[355063076,1740886248968,-500.0,0.00025477,2]
[355063078,1740886248978,-1332.39,0.00025477,2]
[355063080,1740886248988,-586.79815889,0.00025477,2]
[355063082,1740886248998,-503.89578088,0.00025477,2]
[355063084,1740886249010,-500.0,0.00025477,2]
[355063086,1740886249020,-500.0,0.00025477,2]
[355063088,1740886249030,-549.14,0.00025477,2]
[355063090,1740886249040,-500.0,0.00025477,2]
[355063092,1740886249051,-500.0,0.00025477,2]
[355063094,1740886249061,-500.0,0.00025477,2]
[355063096,1740886249071,-500.0,0.00025477,2]
[355063098,1740886249081,-335.60504919,0.00025477,2]
[355063100,1740886249091,-500.0,0.00025477,2]
[355063102,1740886249101,-596.9,0.00025477,2]
[355063104,1740886249112,-500.0,0.00025477,2]
[355063106,1740886249122,-507.26057537,0.00025477,2]
[355063108,1740886249132,-750.14,0.00025477,2]
[355063110,1740886249142,-500.0,0.00025477,2]
[355063112,1740886249152,-500.0,0.00025477,2]
[355063114,1740886249163,-500.0,0.00025477,2]
[355063116,1740886249172,-502.42961867,0.00025477,2]
[355063118,1740886249182,-1874.6,0.00025477,2]
[355063120,1740886249192,-500.0,0.00025477,2]
[355063122,1740886249203,-518.23875421,0.00025477,2]
[355063124,1740886249213,-500.0,0.00025477,2]
[355063126,1740886249223,-2112.91,0.00025477,2]
[355063128,1740886249238,-500.0,0.00025477,2]
[355063130,1740886249249,-503.00366731,0.00025477,2]
[355063132,1740886249259,-500.0,0.00025477,2]
[355063134,1740886249271,-500.0,0.00025477,2]
[355063136,1740886249281,-300.0,0.00025478,10]
[355063138,1740886249291,-500.0,0.00025478,2]
[355063140,1740886249303,-645.37962836,0.00025478,2]
[355063142,1740886249313,-500.0,0.00025478,2]
[355063144,1740886249323,-500.0,0.00025478,2]
[355063146,1740886249334,-500.0,0.00025478,2]
[355063148,1740886249344,-647.64,0.00025478,2]
[355063150,1740886249354,-500.0,0.00025478,2]
[355063152,1740886249364,-534.37,0.00025478,2]
[355063154,1740886249374,-500.0,0.00025478,2]
[355063156,1740886249384,-500.0,0.00025478,2]
[355063158,1740886249394,-500.0,0.00025478,2]
[355063160,1740886249404,-500.0,0.00025478,2]
[355063161,1740886249413,-335.97,0.00025478,2]
[355063162,1740886249424,-500.0,0.00025478,2]
[355063163,1740886249434,-500.0,0.00025478,2]
[355063164,1740886249443,-155.58,0.00025478,2]
[355063165,1740886249453,-500.0,0.00025478,2]
[355063166,1740886249463,-500.0,0.00025478,2]
[355063167,1740886249474,-496.7,0.00025478,2]
[355063168,1740886249484,-500.0,0.00025478,2]
[355063169,1740886249493,-297.64,0.00025478,2]
[355063170,1740886249503,-500.0,0.00025478,2]
[355063171,1740886249513,-296.62682083,0.00025478,2]
[355063172,1740886249522,-279.06,0.00025478,2]
[355063173,1740886249532,-500.0,0.00025478,2]
[355063174,1740886249541,-151.0,0.00025478,7]
[355063175,1740886249551,-500.0,0.00025478,2]
[355063176,1740886249561,-500.0,0.00025478,2]
[355063177,1740886249571,-151.0,0.00025478,7]
[355063178,1740886249581,-793.43,0.00025478,2]
[355063179,1740886249591,-151.0,0.00025478,7]
[355063180,1740886249601,-151.0,0.00025478,7]
[355063182,1740886249611,-500.0,0.00025478,2]
[355063184,1740886249621,-500.0,0.00025478,2]
[355063186,1740886249631,-500.0,0.00025478,2]
[355063188,1740886249641,-500.0,0.00025478,2]
[355063190,1740886249651,-500.0,0.00025478,2]
[355063192,1740886249660,-259.3,0.00025478,2]
[355063194,1740886249669,-500.0,0.00025478,2]
[355063196,1740886249679,-500.0,0.00025478,2]
[355063198,1740886249689,-500.0,0.00025478,2]
[355063200,1740886249698,-151.0,0.00025478,7]
[355063202,1740886249708,-500.0,0.00025478,2]
[355063204,1740886249718,-151.0,0.00025478,7]
[355063206,1740886249727,-500.0,0.00025478,2]
[355063208,1740886249737,-500.0,0.00025478,2]
[355063210,1740886249747,-500.0,0.00025478,2]
[355063212,1740886249757,-500.0,0.00025478,2]
[355063214,1740886249772,-759.83,0.00025478,2]
[355063216,1740886249782,-758.88,0.00025478,2]
[355063218,1740886249791,-151.0,0.00025478,7]
[355063220,1740886249802,-500.0,0.00025478,2]
[355063222,1740886249812,-500.0,0.00025478,2]
[355063224,1740886249822,-500.0,0.00025478,2]
[355063226,1740886249832,-511.96,0.00025478,2]
[355063228,1740886249843,-500.0,0.00025478,2]
[355063230,1740886249852,-500.0,0.00025478,2]
[355063232,1740886249861,-500.0,0.00025478,2]
[355063234,1740886249872,-773.0,0.00025478,2]
[355063236,1740886249882,-972.77,0.00025478,2]
[355063238,1740886249892,-500.0,0.00025478,2]
[355063240,1740886249901,-500.0,0.00025478,2]
[355063242,1740886249911,-500.0,0.00025478,2]
[355063244,1740886249920,-930.92,0.00025478,2]
[355063246,1740886249929,-500.0,0.00025478,2]
[355063248,1740886249939,-500.0,0.00025478,2]
[355063250,1740886249949,-500.0,0.00025478,2]
[355063252,1740886249958,-206.62834138,0.00025478,2]
[355063254,1740886249968,-1323.95,0.00025478,2]
[355063256,1740886249978,-500.0,0.00025478,2]
[355063258,1740886249987,-585.56,0.00025478,2]
[355063260,1740886249997,-596.03,0.00025478,2]
[355063262,1740886250007,-500.0,0.00025478,2]
[355063264,1740886250017,-500.0,0.00025478,2]
[355063266,1740886250026,-500.0,0.00025478,2]
[355063268,1740886250036,-676.15,0.00025478,2]
[355063270,1740886250045,-500.0,0.00025478,2]
[355063272,1740886250055,-615.85,0.00025478,2]
[355063274,1740886250064,-500.0,0.00025478,2]
[355063276,1740886250074,-628.7,0.00025478,2]
[355063278,1740886250084,-1083.56,0.00025478,2]
[355063281,1740886250094,-725.32,0.00025478,2]
[355063283,1740886250104,-500.0,0.00025478,2]
[355063285,1740886250114,-500.0,0.00025478,2]
[355063287,1740886250124,-500.0,0.00025478,2]
[355063289,1740886250133,-574.97,0.00025478,2]
[355063291,1740886250143,-500.0,0.00025478,2]
[355063293,1740886250152,-500.0,0.00025478,2]
[355063295,1740886250161,-500.0,0.00025478,2]
[355063297,1740886250171,-191.28621933,0.00025478,2]
[355063299,1740886250180,-1484.24,0.00025478,2]
[355063301,1740886250190,-500.0,0.00025478,2]
[355063303,1740886250200,-500.0,0.00025478,2]
[355063305,1740886250210,-500.0,0.00025478,2]
[355063307,1740886250220,-852.48,0.00025478,2]
[355063309,1740886250232,-358.73981404,0.00025478,2]
[355063311,1740886250241,-156.0,0.00025479,3]
[355063324,1740886250358,-254.23246181,0.00025479,3]
[355063326,1740886250368,-169.69899632,0.00025479,3]
[355063328,1740886250378,-594.87,0.00025479,2]
[355063330,1740886250388,-500.0,0.00025479,2]
[355063332,1740886250398,-500.0,0.00025479,2]
[355063334,1740886250408,-2118.74,0.00025479,2]
[355063336,1740886250418,-500.0,0.00025479,2]
[355063338,1740886250428,-770.88,0.00025479,2]
[355063340,1740886250437,-689.78,0.00025479,2]
[355063342,1740886250447,-221.29395856,0.00025479,2]
[355063344,1740886250456,-1773.24,0.00025479,2]
[355063346,1740886250466,-500.0,0.00025479,2]
[355063348,1740886250476,-192.87,0.00025479,2]
[355063350,1740886250486,-829.94,0.00025479,2]
[355063352,1740886250495,-700.04,0.00025479,2]
[355063354,1740886250505,-2186.92,0.00025479,2]
[355063356,1740886250514,-935.67,0.00025479,2]
[355063358,1740886250524,-2071.99,0.00025479,2]
[355063360,1740886250534,-1297.72,0.00025479,2]
[355063362,1740886250543,-1265.46,0.00025479,2]
[355063364,1740886250552,-1949.08,0.00025479,2]
[355063366,1740886250563,-500.0,0.00025479,2]
[355063369,1740886250572,-500.0,0.00025479,2]
[355063371,1740886250582,-500.0,0.00025479,2]
[355063373,1740886250591,-500.0,0.00025479,2]
[355063375,1740886250601,-500.0,0.00025479,2]
[355063377,1740886250611,-500.0,0.00025479,2]
[355063379,1740886250620,-500.0,0.00025479,2]
[355063381,1740886250630,-921.11,0.00025479,2]
[355063383,1740886250639,-495.37332665,0.00025479,2]
[355063385,1740886250649,-500.0,0.00025479,2]
[355063387,1740886250659,-500.0,0.00025479,2]